[Event "Chinese Chess League Men 2019"]
[Site "Daqing"]
[Date "2019.06.19"]
[Round "1.3"]
[White "Wen, Yang"]
[Black "Wu, Xibin"]
[Result "1-0"]
[ECO "C54"]
[WhiteElo "2588"]
[BlackElo "2203"]
[Annotator "RC"]
[PlyCount "83"]
[EventDate "2019.06.19"]
[EventType "team-tourn"]
[EventCountry "CHN"]
[SourceTitle "playchess.com"]
[Source "ChessBase"]
[SourceQuality "1"]
[TimeControl "5400+30"]

1. e4 {[%emt 0:00:00]} e5 {[%emt 0:03:16]} 2. Nf3 {[%emt 0:00:00]} Nc6 {[%emt 0:00:12]} 3. Bc4 {[%emt 0:00:00]} Bc5 {[%emt 0:00:53]} 4. c3 {[%emt 0:00:03]} Nf6 {[%emt 0:00:11]} 5. d3 {[%emt 0:00:03]} d6 {[%emt 0:03:06]} 6. O-O {[%emt 0:00:43]} O-O {[%emt 0:00:36]} 7. Re1 {[%emt 0:01:14]} a6 {[%emt 0:02:12]} 8. a4 {[%emt 0:00:19]} Ba7 {[%emt 0:00:49]} 9. h3 {[%emt 0:00:11]} Be6 {[%emt 0:04:56]} 10. Nbd2 {[%emt 0:01:57]} Qd7 {[%emt 0:00:56]} 11. b4 {[%emt 0:05:21]} Bxc4 {[%emt 0:17:36]} 12. Nxc4 {[%emt 0:00:23]} b5 {[%emt 0:00:56]} 13. Na3 {[%emt 0:04:59]} h6 {[%emt 0:03:40]} 14. Bb2 {[%emt 0:30:49]} Rab8 {[%emt 0:04:47]} 15. axb5 {[%emt 0:04:32]} axb5 {[%emt 0:00:10]} 16. Nc2 {[%emt 0:00:07]} Bb6 {[%emt 0:02:59]} 17. Na3 {[%emt 0:08:25]} Rfe8 {[%emt 0:14:26]} 18. Qd2 {[%emt 0:02:39]} Ne7 {[%emt 0:03:31]} 19. c4 {[%emt 0:01:33]} bxc4 {[%emt 0:04:10]} 20. Nxc4 {[%emt 0:02:12]} Nc6 {[%emt 0:03:16]} 21. Bc3 {[%emt 0:07:00]} Bd4 {[%emt 0:04:16]} 22. Bxd4 {[%emt 0:00:07]} exd4 {[%emt 0:00:19]} 23. Reb1 {[%emt 0:00:04]} d5 {[%emt 0:01:27]} 24. exd5 {[%emt 0:00:08]} Qxd5 {[%emt 0:01:30]} 25. Na3 {[%emt 0:06:13]} Ne5 {[%emt 0:04:05]} 26. Nxe5 {[%emt 0:02:01]} Rxe5 {[%emt 0:00:09]} 27. Nc4 {[%emt 0:00:10]} Re6 {[%emt 0:02:51]} 28. Ra5 {[%emt 0:00:11]} Qd7 {[%emt 0:01:46]} 29. Qf4 {[%emt 0:01:53]} Qe7 {[%emt 0:02:56]} 30. b5 {[%emt 0:00:30]} Rd8 {[%emt 0:03:31]} 31. Rba1 {[%emt 0:04:04]} Kh7 {[%emt 0:04:59]} 32. Ra6 {[%emt 0:01:36]} Rd5 {[%emt 0:02:11]} 33. Ra7 {[%emt 0:03:46]} Rxb5 {[%emt 0:01:49]} 34. Rxc7 {[%emt 0:00:02]} Nh5 {[%emt 0:01:57]} 35. Qxf7 {[%emt 0:01:26]} Qxf7 {[%emt 0:00:31]} 36. Rxf7 {[%emt 0:00:02]} Rb3 {[%emt 0:00:01]} 37. Rf3 {[%emt 0:03:45]} g5 {[%emt 0:00:31]} 38. Nd2 {[%emt 0:01:48]} Rb2 {[%emt 0:00:24]} 39. Ne4 {[%emt 0:00:05]} Nf4 {[%emt 0:00:05]} 40. h4 {[%emt 0:01:35]} Nxd3 {[%emt 0:00:55]} 41. Ra7+ {[%emt 0:01:32]} Kg6 {[%emt 0:00:57]} 42. h5+ {[%emt 0:00:03]} 1-0

[Event "Chinese Chess League Men 2019"]
[Site "Daqing"]
[Date "2019.06.19"]
[Round "1.4"]
[White "Qu, Yanqiao"]
[Black "Huang, Renjie"]
[Result "0-1"]
[ECO "D30"]
[WhiteElo "2140"]
[BlackElo "2327"]
[Annotator "NA"]
[PlyCount "62"]
[EventDate "2019.06.19"]
[EventType "team-tourn"]
[EventCountry "CHN"]
[SourceTitle "playchess.com"]
[Source "ChessBase"]
[SourceQuality "1"]
[TimeControl "5400+30"]

1. Nf3 {[%emt 0:00:00]} d5 {[%emt 0:00:00]} 2. d4 {[%emt 0:00:52]} Nf6 {[%emt 0:00:53]} 3. c4 {[%emt 0:01:18]} c6 {[%emt 0:00:06]} 4. e3 {[%emt 0:02:52]} e6 {[%emt 0:00:38]} 5. Nbd2 {[%emt 0:00:07]} Bd6 {[%emt 0:00:30]} 6. b3 {[%emt 0:00:12]} Nbd7 {[%emt 0:00:30]} 7. Bb2 {[%emt 0:00:07]} b6 {[%emt 0:00:29]} 8. Bd3 {[%emt 0:00:06]} Bb7 {[%emt 0:00:24]} 9. O-O {[%emt 0:01:18]} O-O {[%emt 0:00:07]} 10. Ne5 {[%emt 0:04:58]} c5 {[%emt 0:04:00]} 11. Qc2 {[%emt 0:03:02]} cxd4 {[%emt 0:01:45]} 12. exd4 {[%emt 0:01:07]} Rc8 {[%emt 0:00:12]} 13. Rad1 {[%emt 0:03:28]} h6 {[%emt 0:05:21]} 14. Rfe1 {[%emt 0:07:18]} Qe7 {[%emt 0:00:49]} 15. f4 {[%emt 0:11:38]} Bb4 {[%emt 0:04:59]} 16. f5 {[%emt 0:11:49]} Nxe5 {[%emt 0:05:20]} 17. Rxe5 {[%emt 0:03:16]} Bd6 {[%emt 0:01:06]} 18. Re2 {[%emt 0:01:28]} Qc7 {[%emt 0:01:02]} 19. h3 {[%emt 0:05:40]} Nh5 {[%emt 0:02:54]} 20. Nf1 {[%emt 0:04:46]} Nf4 {[%emt 0:00:57]} 21. Ree1 {[%emt 0:06:02]} dxc4 {[%emt 0:01:25]} 22. Be4 {[%emt 0:02:22]} exf5 {[%emt 0:00:43]} 23. Bxb7 {[%emt 0:03:51]} Qxb7 {[%emt 0:00:10]} 24. d5 {[%emt 0:00:04]} c3 {[%emt 0:01:37]} 25. Bc1 {[%emt 0:01:57]} g6 {[%emt 0:02:36]} 26. Bxf4 {[%emt 0:00:36]} Bxf4 {[%emt 0:00:02]} 27. Rd3 {[%emt 0:00:18]} Rfd8 {[%emt 0:00:43]} 28. g3 {[%emt 0:00:22]} Bd6 {[%emt 0:00:35]} 29. Red1 {[%emt 0:00:33]} Be5 {[%emt 0:01:20]} 30. Ne3 {[%emt 0:01:30]} Bxg3 {[%emt 0:00:36]} 31. Nxf5 {[%emt 0:00:23]} Bf4 {[%emt 0:00:06]} 0-1

[Event "Chinese Chess League Men 2019"]
[Site "Daqing"]
[Date "2019.06.19"]
[Round "1.8"]
[White "Yuan, Qingyu"]
[Black "Mi, Tenglong"]
[Result "1-0"]
[ECO "D90"]
[WhiteElo "2355"]
[BlackElo "1692"]
[Annotator "NA"]
[PlyCount "81"]
[EventDate "2019.06.19"]
[EventType "team-tourn"]
[EventCountry "CHN"]
[SourceTitle "playchess.com"]
[Source "ChessBase"]
[SourceQuality "1"]
[TimeControl "5400+30"]

1. Nf3 {[%emt 0:00:00]} Nf6 {[%emt 0:00:00]} 2. c4 {[%emt 0:00:00]} g6 {[%emt 0:00:00]} 3. Nc3 {[%emt 0:00:00]} d5 {[%emt 0:00:04]} 4. cxd5 {[%emt 0:00:04]} Nxd5 {[%emt 0:00:05]} 5. Qb3 {[%emt 0:00:17]} Nb6 {[%emt 0:01:42]} 6. d4 {[%emt 0:01:00]} Bg7 {[%emt 0:01:13]} 7. Bf4 {[%emt 0:00:22]} Be6 {[%emt 0:03:10]} 8. Qc2 {[%emt 0:04:11]} Nc6 {[%emt 0:02:03]} 9. Rd1 {[%emt 0:02:16]} Nb4 {[%emt 0:12:31]} 10. Qb1 {[%emt 0:01:04]} N6d5 {[%emt 0:05:03]} 11. Bd2 {[%emt 0:06:52]} c5 {[%emt 0:10:06]} 12. e4 {[%emt 0:04:32]} Nf6 {[%emt 0:24:41]} 13. dxc5 {[%emt 0:06:10]} Qc8 {[%emt 0:03:18]} 14. a3 {[%emt 0:04:16]} Nc6 {[%emt 0:00:41]} 15. b4 {[%emt 0:01:03]} O-O {[%emt 0:06:18]} 16. Be2 {[%emt 0:00:40]} Bg4 {[%emt 0:05:36]} 17. Be3 {[%emt 0:12:41]} Bxf3 {[%emt 0:01:13]} 18. Bxf3 {[%emt 0:00:06]} Ng4 {[%emt 0:02:15]} 19. Qc1 {[%emt 0:00:36]} Nxe3 {[%emt 0:00:54]} 20. Qxe3 {[%emt 0:02:22]} Rd8 {[%emt 0:00:44]} 21. O-O {[%emt 0:00:55]} Bxc3 {[%emt 0:03:19]} 22. Qxc3 {[%emt 0:00:02]} e5 {[%emt 0:00:09]} 23. Rd5 {[%emt 0:05:05]} Qe6 {[%emt 0:00:26]} 24. h3 {[%emt 0:04:38]} Nd4 {[%emt 0:00:57]} 25. Bg4 {[%emt 0:06:53]} f5 {[%emt 0:06:21]} 26. Rxd8+ {[%emt 0:00:17]} Rxd8 {[%emt 0:00:07]} 27. exf5 {[%emt 0:00:10]} gxf5 {[%emt 0:00:04]} 28. Bd1 {[%emt 0:00:38]} Kh8 {[%emt 0:02:28]} 29. Re1 {[%emt 0:01:02]} Qf6 {[%emt 0:04:15]} 30. Qe3 {[%emt 0:05:02]} Re8 {[%emt 0:00:10]} 31. Ba4 {[%emt 0:06:19]} Re7 {[%emt 0:00:24]} 32. f4 {[%emt 0:01:43]} e4 {[%emt 0:00:35]} 33. Rd1 {[%emt 0:00:22]} Ne6 {[%emt 0:00:12]} 34. Bb3 {[%emt 0:00:33]} h6 {[%emt 0:02:27]} 35. Rd6 {[%emt 0:00:37]} Kh7 {[%emt 0:00:50]} 36. Kh2 {[%emt 0:01:37]} Qg6 {[%emt 0:00:37]} 37. Bxe6 {[%emt 0:01:44]} Rxe6 {[%emt 0:00:04]} 38. Rd7+ {[%emt 0:00:07]} Kg8 {[%emt 0:00:17]} 39. Rxb7 {[%emt 0:00:14]} Re8 {[%emt 0:00:41]} 40. b5 {[%emt 0:01:02]} Rd8 {[%emt 0:00:06]} 41. c6 {[%emt 0:00:14]} 1-0

[Event "Chinese Chess League Men 2019"]
[Site "Daqing"]
[Date "2019.06.20"]
[Round "2.3"]
[White "Zou, Chen"]
[Black "Liu, Qingnan"]
[Result "0-1"]
[ECO "B06"]
[WhiteElo "2415"]
[BlackElo "2551"]
[Annotator "ChessBase"]
[PlyCount "138"]
[EventDate "2019.06.19"]
[EventType "team-tourn"]
[EventCountry "CHN"]
[SourceTitle "playchess.com"]
[Source "ChessBase"]
[SourceQuality "1"]
[TimeControl "5400+30"]

1. d4 {[%emt 0:00:07]} g6 {[%emt 0:00:00]} 2. e4 {[%emt 0:02:13]} Bg7 {[%emt 0:00:03]} 3. Nf3 {[%emt 0:00:45]} d6 {[%emt 0:00:11]} 4. Bc4 {[%emt 0:00:30]} a6 {[%emt 0:00:45]} 5. O-O {[%emt 0:00:43]} e6 {[%emt 0:01:09]} 6. Re1 {[%emt 0:03:35]} Nd7 {[%emt 0:02:40]} 7. Nbd2 {[%emt 0:03:07]} b5 {[%emt 0:01:33]} 8. Bd3 {[%emt 0:03:42]} c5 {[%emt 0:00:54]} 9. c3 {[%emt 0:00:33]} Bb7 {[%emt 0:03:52]} 10. a4 {[%emt 0:04:07]} c4 {[%emt 0:02:01]} 11. Bc2 {[%emt 0:00:37]} Ngf6 {[%emt 0:00:30]} 12. Nf1 {[%emt 0:01:24]} O-O {[%emt 0:01:54]} 13. Ng3 {[%emt 0:05:55]} Qc7 {[%emt 0:02:04]} 14. Bg5 {[%emt 0:05:46]} e5 {[%emt 0:05:15]} 15. Qd2 {[%emt 0:01:12]} Rfe8 {[%emt 0:02:59]} 16. Bh6 {[%emt 0:03:55]} Bh8 {[%emt 0:08:02]} 17. h3 {[%emt 0:03:11]} d5 {[%emt 0:04:00]} 18. axb5 {[%emt 0:16:24]} axb5 {[%emt 0:16:07]} 19. Rxa8 {[%emt 0:00:31]} Bxa8 {[%emt 0:01:51]} 20. Nxe5 {[%emt 0:00:51]} Nxe5 {[%emt 0:09:19]} 21. Bf4 {[%emt 0:02:48]} Nfd7 {[%emt 0:21:41]} 22. dxe5 {[%emt 0:00:03]} Nxe5 {[%emt 0:00:27]} 23. exd5 {[%emt 0:00:14]} Qd6 {[%emt 0:00:50]} 24. Rd1 {[%emt 0:02:44]} f5 {[%emt 0:04:42]} 25. Qe3 {[%emt 0:21:12]} Bf6 {[%emt 0:01:52]} 26. Bg5 {[%emt 0:12:33]} Nf3+ {[%emt 0:02:08]} 27. Qxf3 {[%emt 0:00:02]} Bxg5 {[%emt 0:00:02]} 28. Nxf5 {[%emt 0:01:08]} gxf5 {[%emt 0:00:24]} 29. Qxf5 {[%emt 0:00:03]} Qg6 {[%emt 0:02:04]} 30. Qd7 {[%emt 0:00:52]} Qf7 {[%emt 0:00:25]} 31. Qg4 {[%emt 0:00:40]} Qf4 {[%emt 0:03:48]} 32. Qh5 {[%emt 0:03:14]} Re7 {[%emt 0:00:09]} 33. d6 {[%emt 0:01:08]} Rf7 {[%emt 0:00:35]} 34. Qe2 {[%emt 0:00:03]} Bh4 {[%emt 0:00:34]} 35. Rf1 {[%emt 0:00:41]} Qxd6 {[%emt 0:01:14]} 36. Qg4+ {[%emt 0:00:50]} Rg7 {[%emt 0:00:01]} 37. Bxh7+ {[%emt 0:00:18]} Kh8 {[%emt 0:00:59]} 38. Bg6 {[%emt 0:00:36]} Be7 {[%emt 0:00:56]} 39. Qh5+ {[%emt 0:00:39]} Kg8 {[%emt 0:00:01]} 40. Qxb5 {[%emt 0:00:18]} Qc6 {[%emt 0:01:10]} 41. Qxc6 {[%emt 0:00:32]} Bxc6 {[%emt 0:00:01]} 42. Re1 {[%emt 0:00:09]} Rxg6 {[%emt 0:00:37]} 43. Rxe7 {[%emt 0:00:02]} Bxg2 {[%emt 0:00:05]} 44. h4 {[%emt 0:01:14]} Bf3+ {[%emt 0:00:59]} 45. Kh2 {[%emt 0:00:40]} Bd5 {[%emt 0:00:34]} 46. Kh3 {[%emt 0:00:15]} Rf6 {[%emt 0:00:19]} 47. Re5 {[%emt 0:00:17]} Be6+ {[%emt 0:00:19]} 48. Kg3 {[%emt 0:00:32]} Kf7 {[%emt 0:00:04]} 49. Rc5 {[%emt 0:00:33]} Rf5 {[%emt 0:00:17]} 50. Rc7+ {[%emt 0:00:48]} Kf6 {[%emt 0:00:06]} 51. Rb7 {[%emt 0:00:12]} Bd5 {[%emt 0:00:00]} 52. Rb5 {[%emt 0:00:21]} Bf7 {[%emt 0:01:13]} 53. Rb6+ {[%emt 0:00:04]} Ke5 {[%emt 0:00:07]} 54. f3 {[%emt 0:01:01]} Bd5 {[%emt 0:00:16]} 55. Rb5 {[%emt 0:00:01]} Rxf3+ {[%emt 0:00:26]} 56. Kg4 {[%emt 0:00:01]} Rf4+ {[%emt 0:00:15]} 57. Kg3 {[%emt 0:00:48]} Rf3+ {[%emt 0:01:53]} 58. Kg4 {[%emt 0:00:02]} Rd3 {[%emt 0:01:41]} 59. b3 {[%emt 0:00:14]} Rxc3 {[%emt 0:00:34]} 60. bxc4 {[%emt 0:00:01]} Rxc4+ {[%emt 0:00:05]} 61. Kg5 {[%emt 0:00:20]} Rc1 {[%emt 0:00:02]} 62. Kh5 {[%emt 0:01:12]} Rg1 {[%emt 0:00:07]} 63. Ra5 {[%emt 0:00:04]} Ke4 {[%emt 0:00:07]} 64. Ra4+ {[%emt 0:00:30]} Kf5 {[%emt 0:00:05]} 65. Ra5 {[%emt 0:00:08]} Rd1 {[%emt 0:00:03]} 66. Rb5 {[%emt 0:00:40]} Rd4 {[%emt 0:00:05]} 67. Ra5 {[%emt 0:01:22]} Kf6 {[%emt 0:00:05]} 68. Ra6+ {[%emt 0:00:02]} Be6 {[%emt 0:00:03]} 69. Rb6 {[%emt 0:00:04]} Rd8 {[%emt 0:00:05]} 0-1

[Event "Chinese Chess League Men 2019"]
[Site "Daqing"]
[Date "2019.06.20"]
[Round "2.4"]
[White "Huang, Renjie"]
[Black "Lin, Yi"]
[Result "1/2-1/2"]
[ECO "C01"]
[WhiteElo "2327"]
[BlackElo "2396"]
[Annotator "NA"]
[PlyCount "61"]
[EventDate "2019.06.19"]
[EventType "team-tourn"]
[EventCountry "CHN"]
[SourceTitle "playchess.com"]
[Source "ChessBase"]
[SourceQuality "1"]
[TimeControl "5400+30"]

1. e4 {[%emt 0:00:00]} e5 {[%emt 0:00:00]} 2. Nf3 {[%emt 0:00:00]} Nf6 {[%emt 0:00:00]} 3. Nxe5 {[%emt 0:01:42]} d6 {[%emt 0:00:00]} 4. Nf3 {[%emt 0:00:08]} Nxe4 {[%emt 0:00:07]} 5. d3 {[%emt 0:00:06]} Nf6 {[%emt 0:00:07]} 6. d4 {[%emt 0:00:06]} d5 {[%emt 0:00:21]} 7. Bd3 {[%emt 0:00:15]} Bd6 {[%emt 0:00:13]} 8. Qe2+ {[%emt 0:00:06]} Qe7 {[%emt 0:04:11]} 9. Qxe7+ {[%emt 0:00:08]} Bxe7 {[%emt 0:00:23]} 10. Bf4 {[%emt 0:00:49]} c6 {[%emt 0:00:55]} 11. O-O {[%emt 0:00:09]} O-O {[%emt 0:00:38]} 12. Re1 {[%emt 0:00:34]} Re8 {[%emt 0:00:07]} 13. c4 {[%emt 0:02:40]} dxc4 {[%emt 0:07:55]} 14. Bxc4 {[%emt 0:00:22]} Nd5 {[%emt 0:00:11]} 15. Bd6 {[%emt 0:05:15]} Be6 {[%emt 0:03:24]} 16. Bxe7 {[%emt 0:00:08]} Rxe7 {[%emt 0:00:07]} 17. Nc3 {[%emt 0:00:47]} Nxc3 {[%emt 0:08:11]} 18. bxc3 {[%emt 0:01:36]} Nd7 {[%emt 0:00:39]} 19. Ng5 {[%emt 0:03:37]} Nf8 {[%emt 0:00:39]} 20. Nxe6 {[%emt 0:09:34]} Nxe6 {[%emt 0:00:06]} 21. Rab1 {[%emt 0:02:49]} Rae8 {[%emt 0:02:53]} 22. Bxe6 {[%emt 0:04:03]} Rxe6 {[%emt 0:00:03]} 23. Rxe6 {[%emt 0:00:09]} Rxe6 {[%emt 0:00:04]} 24. Kf1 {[%emt 0:00:05]} b6 {[%emt 0:00:41]} 25. a4 {[%emt 0:01:23]} g6 {[%emt 0:01:02]} 26. a5 {[%emt 0:01:18]} b5 {[%emt 0:05:02]} 27. d5 {[%emt 0:00:09]} Re5 {[%emt 0:01:51]} 28. dxc6 {[%emt 0:04:11]} Rc5 {[%emt 0:00:05]} 29. Rd1 {[%emt 0:00:52]} Rxc6 {[%emt 0:00:10]} 30. Rd5 {[%emt 0:00:51]} Rxc3 {[%emt 0:00:39]} 31. Rxb5 {[%emt 0:00:05]} 1/2-1/2

[Event "Chinese Chess League Men 2019"]
[Site "Daqing"]
[Date "2019.06.20"]
[Round "2.7"]
[White "Xiu, Deshun"]
[Black "Lou, Yiping"]
[Result "0-1"]
[ECO "E21"]
[WhiteElo "2538"]
[BlackElo "2482"]
[Annotator "ChessBase"]
[PlyCount "118"]
[EventDate "2019.06.19"]
[EventType "team-tourn"]
[EventCountry "CHN"]
[SourceTitle "playchess.com"]
[Source "ChessBase"]
[SourceQuality "1"]
[TimeControl "5400+30"]

1. d4 {[%emt 0:00:00]} Nf6 {[%emt 0:00:00]} 2. c4 {[%emt 0:00:00]} e6 {[%emt 0:00:00]} 3. Nc3 {[%emt 0:00:00]} Bb4 {[%emt 0:00:00]} 4. Nf3 {[%emt 0:02:36]} O-O {[%emt 0:02:18]} 5. Bg5 {[%emt 0:04:17]} c5 {[%emt 0:05:44]} 6. Rc1 {[%emt 0:01:35]} h6 {[%emt 0:02:52]} 7. Bh4 {[%emt 0:13:37]} cxd4 {[%emt 0:02:28]} 8. Nxd4 {[%emt 0:00:38]} b6 {[%emt 0:01:44]} 9. Ndb5 {[%emt 0:09:23]} Nc6 {[%emt 0:12:57]} 10. e3 {[%emt 0:11:20]} a6 {[%emt 0:16:26]} 11. Nd6 {[%emt 0:00:25]} Qe7 {[%emt 0:00:28]} 12. Bg3 {[%emt 0:00:39]} Ne8 {[%emt 0:03:16]} 13. Nxe8 {[%emt 0:05:10]} Rxe8 {[%emt 0:07:10]} 14. a3 {[%emt 0:04:22]} Bxc3+ {[%emt 0:00:07]} 15. Rxc3 {[%emt 0:00:06]} e5 {[%emt 0:01:17]} 16. Be2 {[%emt 0:08:04]} d6 {[%emt 0:02:38]} 17. Bf3 {[%emt 0:03:51]} Bb7 {[%emt 0:00:58]} 18. O-O {[%emt 0:01:32]} Rac8 {[%emt 0:02:35]} 19. Bd5 {[%emt 0:04:10]} Nd8 {[%emt 0:14:51]} 20. Qb3 {[%emt 0:03:05]} Qc7 {[%emt 0:00:38]} 21. Rd1 {[%emt 0:04:01]} Ne6 {[%emt 0:02:44]} 22. Qc2 {[%emt 0:06:33]} Bc6 {[%emt 0:01:18]} 23. f4 {[%emt 0:04:44]} exf4 {[%emt 0:04:12]} 24. exf4 {[%emt 0:00:40]} Nc5 {[%emt 0:00:12]} 25. f5 {[%emt 0:01:32]} Ne4 {[%emt 0:01:26]} 26. Bxe4 {[%emt 0:00:11]} Bxe4 {[%emt 0:00:09]} 27. Qf2 {[%emt 0:00:05]} Qc5 {[%emt 0:01:35]} 28. Rxd6 {[%emt 0:02:32]} Bxf5 {[%emt 0:00:33]} 29. Qxc5 {[%emt 0:00:08]} bxc5 {[%emt 0:00:09]} 30. Kf2 {[%emt 0:01:13]} a5 {[%emt 0:01:28]} 31. a4 {[%emt 0:05:47]} Be4 {[%emt 0:01:48]} 32. Bf4 {[%emt 0:00:49]} Kh7 {[%emt 0:05:13]} 33. h4 {[%emt 0:00:18]} f6 {[%emt 0:00:56]} 34. g3 {[%emt 0:00:39]} g5 {[%emt 0:01:02]} 35. Rd7+ {[%emt 0:00:42]} Kg6 {[%emt 0:00:14]} 36. Be3 {[%emt 0:00:13]} Re5 {[%emt 0:01:18]} 37. hxg5 {[%emt 0:01:57]} hxg5 {[%emt 0:00:14]} 38. g4 {[%emt 0:00:10]} Rh8 {[%emt 0:01:23]} 39. Kg3 {[%emt 0:00:03]} Rh4 {[%emt 0:00:56]} 40. Rd6 {[%emt 0:00:26]} Bb7 {[%emt 0:00:30]} 41. Rb3 {[%emt 0:01:35]} Bc8 {[%emt 0:00:36]} 42. Kf2 {[%emt 0:00:04]} Rxg4 {[%emt 0:00:17]} 43. Rb8 {[%emt 0:00:12]} Be6 {[%emt 0:00:32]} 44. Bd2 {[%emt 0:01:18]} Rxc4 {[%emt 0:00:27]} 45. Bc3 {[%emt 0:00:24]} Rf4+ {[%emt 0:00:52]} 46. Kg1 {[%emt 0:00:01]} Ree4 {[%emt 0:01:27]} 47. Rbb6 {[%emt 0:01:32]} Kf5 {[%emt 0:00:30]} 48. Rbc6 {[%emt 0:00:34]} c4 {[%emt 0:01:18]} 49. Rc5+ {[%emt 0:00:08]} Kg4 {[%emt 0:00:10]} 50. Rcc6 {[%emt 0:00:11]} Bf5 {[%emt 0:00:35]} 51. Bd2 {[%emt 0:00:56]} Rf3 {[%emt 0:00:27]} 52. Rxf6 {[%emt 0:00:02]} Rg3+ {[%emt 0:00:51]} 53. Kf2 {[%emt 0:00:05]} Rf3+ {[%emt 0:00:34]} 54. Kg1 {[%emt 0:00:01]} Re2 {[%emt 0:01:34]} 55. Bxa5 {[%emt 0:00:41]} Rg3+ {[%emt 0:00:18]} 56. Kf1 {[%emt 0:00:14]} Bd3 {[%emt 0:00:16]} 57. Bb6 {[%emt 0:00:46]} Rxb2+ {[%emt 0:00:36]} 58. Ke1 {[%emt 0:00:02]} Rgg2 {[%emt 0:00:10]} 59. Bf2 {[%emt 0:00:14]} Re2+ {[%emt 0:00:10]} 0-1

[Event "Chinese Chess League Men 2019"]
[Site "Daqing"]
[Date "2019.06.20"]
[Round "2.8"]
[White "Wang, Zideng"]
[Black "Yuan, Qingyu"]
[Result "0-1"]
[ECO "E01"]
[WhiteElo "2015"]
[BlackElo "2355"]
[Annotator "NA"]
[PlyCount "87"]
[EventDate "2019.06.19"]
[EventType "team-tourn"]
[EventCountry "CHN"]
[SourceTitle "playchess.com"]
[Source "ChessBase"]
[SourceQuality "1"]
[TimeControl "5400+30"]

1. d4 {[%emt 0:00:07]} Nf6 {[%emt 0:00:00]} 2. c4 {[%emt 0:00:00]} e6 {[%emt 0:00:00]} 3. g3 {[%emt 0:00:00]} d5 {[%emt 0:00:00]} 4. Nf3 {[%emt 0:00:00]} Bb4+ {[%emt 0:00:00]} 5. Bd2 {[%emt 0:00:23]} Bd6 {[%emt 0:00:28]} 6. Bg2 {[%emt 0:00:30]} c6 {[%emt 0:00:30]} 7. Qc2 {[%emt 0:00:30]} Nbd7 {[%emt 0:00:30]} 8. O-O {[%emt 0:00:30]} O-O {[%emt 0:00:30]} 9. Bg5 {[%emt 0:00:30]} h6 {[%emt 0:00:50]} 10. Bxf6 {[%emt 0:01:27]} Nxf6 {[%emt 0:00:04]} 11. Nbd2 {[%emt 0:02:21]} b6 {[%emt 0:02:11]} 12. e4 {[%emt 0:01:19]} Be7 {[%emt 0:00:04]} 13. e5 {[%emt 0:03:29]} Nd7 {[%emt 0:00:43]} 14. cxd5 {[%emt 0:05:49]} cxd5 {[%emt 0:00:54]} 15. Rfc1 {[%emt 0:00:12]} Nb8 {[%emt 0:03:11]} 16. Bf1 {[%emt 0:02:43]} Bd7 {[%emt 0:03:37]} 17. a3 {[%emt 0:01:47]} a6 {[%emt 0:13:54]} 18. Qc7 {[%emt 0:01:03]} Qxc7 {[%emt 0:02:29]} 19. Rxc7 {[%emt 0:00:12]} Rc8 {[%emt 0:00:04]} 20. Rac1 {[%emt 0:04:39]} Rxc7 {[%emt 0:00:15]} 21. Rxc7 {[%emt 0:00:09]} Kf8 {[%emt 0:03:48]} 22. Bd3 {[%emt 0:08:43]} Ke8 {[%emt 0:01:42]} 23. Rc1 {[%emt 0:02:47]} a5 {[%emt 0:07:14]} 24. Kf1 {[%emt 0:01:51]} a4 {[%emt 0:01:04]} 25. Nb1 {[%emt 0:03:59]} Kd8 {[%emt 0:05:26]} 26. Nc3 {[%emt 0:03:25]} Ra5 {[%emt 0:00:54]} 27. Ke2 {[%emt 0:03:30]} Nc6 {[%emt 0:01:09]} 28. Ke3 {[%emt 0:15:13]} f6 {[%emt 0:09:43]} 29. exf6 {[%emt 0:05:44]} gxf6 {[%emt 0:04:47]} 30. Bb5 {[%emt 0:02:49]} Na7 {[%emt 0:05:23]} 31. Bd3 {[%emt 0:07:33]} Nc8 {[%emt 0:05:26]} 32. Na2 {[%emt 0:03:03]} Bd6 {[%emt 0:01:30]} 33. Nh4 {[%emt 0:01:38]} e5 {[%emt 0:01:24]} 34. Bf5 {[%emt 0:01:30]} exd4+ {[%emt 0:02:01]} 35. Kd3 {[%emt 0:00:15]} Rb5 {[%emt 0:04:39]} 36. Bxd7 {[%emt 0:01:14]} Kxd7 {[%emt 0:01:13]} 37. Rc2 {[%emt 0:00:24]} Rb3+ {[%emt 0:00:36]} 38. Kxd4 {[%emt 0:01:46]} Ne7 {[%emt 0:01:37]} 39. f4 {[%emt 0:02:39]} Bc5+ {[%emt 0:00:14]} 40. Rxc5 {[%emt 0:00:12]} bxc5+ {[%emt 0:00:03]} 41. Kxc5 {[%emt 0:00:08]} Rxb2 {[%emt 0:00:19]} 42. Nc3 {[%emt 0:00:16]} Rxh2 {[%emt 0:01:33]} 43. Nxa4 {[%emt 0:02:01]} Rc2+ {[%emt 0:00:48]} 44. Kd4 {[%emt 0:00:35]} 0-1

[Event "Chinese Chess League Men 2019"]
[Site "Daqing"]
[Date "2019.06.20"]
[Round "2.10"]
[White "Lin, Chen"]
[Black "Xu, Minghui"]
[Result "1/2-1/2"]
[ECO "C85"]
[WhiteElo "2497"]
[BlackElo "2368"]
[Annotator "ChessBase"]
[PlyCount "60"]
[EventDate "2019.06.19"]
[EventType "team-tourn"]
[EventCountry "CHN"]
[SourceTitle "playchess.com"]
[Source "ChessBase"]
[SourceQuality "1"]
[TimeControl "5400+30"]

1. e4 {[%emt 0:00:00]} e5 {[%emt 0:00:00]} 2. Nf3 {[%emt 0:00:00]} Nc6 {[%emt 0:00:00]} 3. Bb5 {[%emt 0:00:29]} a6 {[%emt 0:00:33]} 4. Ba4 {[%emt 0:00:08]} Nf6 {[%emt 0:00:07]} 5. O-O {[%emt 0:00:27]} Be7 {[%emt 0:00:13]} 6. Bxc6 {[%emt 0:00:53]} dxc6 {[%emt 0:00:11]} 7. Qe1 {[%emt 0:00:10]} c5 {[%emt 0:00:22]} 8. Nxe5 {[%emt 0:00:56]} Qd4 {[%emt 0:00:44]} 9. Nf3 {[%emt 0:00:08]} Qxe4 {[%emt 0:00:06]} 10. Qxe4 {[%emt 0:00:05]} Nxe4 {[%emt 0:00:05]} 11. Re1 {[%emt 0:00:19]} Nf6 {[%emt 0:07:06]} 12. b3 {[%emt 0:01:39]} Bg4 {[%emt 0:17:52]} 13. Ba3 {[%emt 0:14:44]} Nd7 {[%emt 0:11:14]} 14. Nc3 {[%emt 0:09:55]} Bxf3 {[%emt 0:05:51]} 15. gxf3 {[%emt 0:02:03]} Kd8 {[%emt 0:00:24]} 16. d4 {[%emt 0:02:44]} Bf6 {[%emt 0:04:27]} 17. Nd5 {[%emt 0:01:06]} Bxd4 {[%emt 0:13:46]} 18. Rad1 {[%emt 0:00:07]} a5 {[%emt 0:08:57]} 19. c3 {[%emt 0:18:43]} Bf6 {[%emt 0:00:24]} 20. Bxc5 {[%emt 0:00:28]} Kc8 {[%emt 0:01:51]} 21. Be3 {[%emt 0:00:36]} Ne5 {[%emt 0:04:56]} 22. Kg2 {[%emt 0:02:53]} Ng6 {[%emt 0:00:44]} 23. f4 {[%emt 0:05:11]} Ra6 {[%emt 0:01:36]} 24. Kh3 {[%emt 0:06:02]} Ne7 {[%emt 0:07:57]} 25. c4 {[%emt 0:06:28]} Rd8 {[%emt 0:02:40]} 26. Nxe7+ {[%emt 0:01:36]} Bxe7 {[%emt 0:00:09]} 27. Rxd8+ {[%emt 0:00:08]} Kxd8 {[%emt 0:00:08]} 28. Rd1+ {[%emt 0:00:07]} Rd6 {[%emt 0:00:08]} 29. Rxd6+ {[%emt 0:00:17]} Bxd6 {[%emt 0:00:06]} 30. Kg4 {[%emt 0:00:47]} Kd7 {[%emt 0:00:13]} 1/2-1/2